bitfinex/quotes_ETHUSD_20240827
["timestamp","ask_amount","ask_price","bid_price","bid_amount"]
[1724793366505,0.07779555,2571.5,2570.4,3.89032]
[1724793366708,0.07779555,2571.5,2570.5,0.55]
[1724793366941,0.07779555,2571.6,2570.6,3.96780868]
[1724793367139,0.07779555,2571.7,2570.7,0.55]
[1724793367438,0.07779555,2571.7,2570.2,5.8406871]
[1724793367439,3.88933,2571.2,2569.9,13.3634]
[1724793367650,0.46672855,2571.1,2569.4,9.5269]
[1724793367945,3.89024,2570.6,2569.4,9.5269]
[1724793368095,3.96811555,2570.5,2569.4,9.5269]
[1724793368301,3.89052,2570.4,2569.4,9.5269]
[1724793368621,0.07779555,2570.3,2569.4,9.5269]
[1724793368837,0.07779555,2570.6,2569.4,9.5269]
[1724793369023,0.07779555,2570.6,2568.8,9.5972]
[1724793369192,3.891,2570.1,2568.8,9.5972]
[1724793369396,3.89055,2570.4,2568.8,9.5972]
[1724793369397,0.46689555,2570.0,2568.9,3.89268]
[1724793369696,0.18982638,2570.0,2569.0,3.9703875]
[1724793370117,4.08088638,2570.0,2568.8,9.5972]
[1724793370314,0.07779555,2569.9,2568.8,9.5972]
[1724793370559,0.07779555,2569.9,2568.5,3.89322]
[1724793370716,0.07779555,2569.9,2568.2,13.88724]
[1724793370717,3.89159,2569.7,2568.2,13.88724]
[1724793370919,3.96956555,2569.6,2568.2,13.88724]
[1724793371160,3.96956555,2569.6,2568.2,13.88717]
[1724793371373,0.11094892,2569.5,2568.2,17.78084]
[1724793373170,10.11143818,2570.6,2569.0,3.89246]
[1724793373336,3.96809555,2570.5,2569.1,0.07783648]
[1724793373531,3.96809555,2570.5,2569.2,0.55]
[1724793373532,3.8907,2570.3,2569.2,0.55]
[1724793373832,1.17335727,2571.0,2569.2,0.55]
[1724793373833,0.10084768,2570.2,2569.3,0.07783104]
[1724793374032,3.88949,2571.1,2569.7,3.89148]
[1724793374252,10.34788773,2571.3,2569.7,3.89148]
[1724793374253,0.10118978,2571.0,2569.8,0.55]
[1724793374473,13.00644,2571.3,2569.9,3.89107]
[1724793374701,0.10161987,2570.9,2570.0,0.55]
[1724793374839,16.89565,2571.3,2570.0,0.55]
[1724793375043,0.1028604,2571.2,2570.0,0.55]
[1724793375736,3.88977,2570.9,2569.7,9.4081]
[1724793375935,3.89012,2570.7,2569.3,3.89206]
[1724793376149,3.89012,2570.7,2569.1,3.0]
[1724793376150,0.44834955,2570.7,2568.9,3.8926]
[1724793376408,0.78223818,2570.5,2568.7,9.9051]
[1724793376538,3.89064,2570.3,2569.0,3.89245]
[1724793376733,0.389064,2570.2,2569.0,3.89245]
[1724793376936,0.49325278,2570.2,2569.0,3.89245]
[1724793377231,0.49325278,2570.2,2569.2,5.79724164]
[1724793377232,0.10418878,2570.2,2569.2,5.79724164]
[1724793377461,0.10418878,2570.2,2568.9,3.89265]
[1724793377697,0.10418878,2570.2,2568.7,9.9051]
[1724793377698,3.8912,2569.9,2568.7,9.9051]
[1724793377879,0.38912,2569.8,2568.7,9.9051]
[1724793378064,0.10377861,2569.8,2568.7,13.7981]
[1724793378271,0.10377861,2569.8,2568.7,9.9051]
[1724793378640,0.10377861,2569.8,2568.4,5.79724164]
[1724793378641,0.88601679,2569.8,2568.4,5.79724164]
[1724793378846,0.88601679,2569.8,2568.5,3.89322]
[1724793379061,3.89153,2569.7,2568.4,5.79724164]
[1724793379400,0.88585073,2569.6,2568.4,5.79724164]
[1724793379558,0.88585073,2569.6,2568.0,9.4325]
[1724793379756,0.88585073,2569.6,2567.9,5.79724164]
[1724793379757,3.89243,2569.1,2567.9,5.79724164]
[1724793380000,3.89243,2569.1,2567.6,3.89463]
[1724793380001,3.89258,2569.0,2567.6,3.89463]
[1724793380204,3.89243,2569.1,2567.5,9.4325]
[1724793380205,3.89297,2568.8,2567.5,9.4325]
[1724793380357,0.78223818,2568.7,2567.6,3.89464]
[1724793380679,0.10195212,2568.7,2567.6,1.7222]
[1724793380889,0.15967572,2568.7,2567.5,9.4325]
[1724793381184,0.78223818,2568.6,2567.5,9.4325]
[1724793381359,0.78223818,2568.5,2567.5,9.4325]
[1724793381700,0.78223818,2568.4,2567.5,9.4325]
[1724793381993,0.83996178,2568.5,2567.5,13.32722]
[1724793382208,0.10123859,2568.3,2567.8,3.89437]
[1724793382409,0.83996178,2568.5,2567.9,3.07785885]
[1724793382410,0.0577236,2568.5,2567.9,3.07785885]
[1724793382706,0.0577236,2568.5,2567.9,0.07785885]
[1724793382854,0.0577236,2568.5,2568.4,3.89347]
[1724793383058,0.0577236,2568.5,2568.4,13.49235249]
[1724793383301,0.0577236,2568.5,2568.4,24.73568774]
[1724793383507,0.78223818,2569.9,2569.4,3.89183]
[1724793383802,0.78223818,2569.9,2568.5,13.78738]
[1724793383803,0.78223818,2570.2,2569.5,0.55]
[1724793383960,0.78223818,2570.3,2569.5,0.62782186]
[1724793384356,0.78223818,2570.3,2569.9,5.62756513]
[1724793384608,1.17335727,2570.4,2569.9,5.62756513]
[1724793384609,0.78223818,2570.4,2569.9,5.62756513]
[1724793384793,0.78223818,2570.5,2570.0,0.62780761]
[1724793385110,1.34217217,2570.6,2570.2,3.89072]
[1724793385111,0.1688149,2570.6,2570.2,3.89072]
[1724793385349,0.1688149,2570.6,2570.3,4.51832959]
[1724793385489,0.1688149,2570.6,2570.4,16.56414]
[1724793385688,0.1688149,2570.6,2570.5,0.55]
[1724793386091,0.1688149,2570.6,2570.5,6.17756513]
[1724793386839,0.1688149,2570.6,2570.5,14.03593009]
[1724793386994,0.1688149,2570.6,2570.5,19.4068931]
[1724793387331,0.78223818,2571.5,2570.9,3.88959]
[1724793387491,0.78223818,2571.6,2571.1,3.88926]
[1724793387687,0.78223818,2571.7,2570.9,3.88956]
[1724793387920,0.78223818,2571.7,2571.3,9.51661513]
[1724793388250,0.78223818,2571.9,2571.3,5.62756513]
[1724793388538,0.78223818,2571.8,2571.4,0.55]
[1724793388891,0.78223818,2571.7,2571.4,0.55]
[1724793389092,0.78223818,2571.7,2570.7,3.88993]
[1724793389093,0.78223818,2571.6,2570.7,3.8899]
[1724793389506,0.78223818,2571.4,2570.8,3.55]
[1724793389704,0.78223818,2571.5,2570.8,3.55]
[1724793389940,0.78223818,2571.5,2570.9,5.61129651]
[1724793390248,0.78223818,2571.6,2571.0,0.55]
[1724793390395,0.78223818,2571.7,2571.0,0.55]
[1724793390595,0.78223818,2571.6,2571.0,0.55]
[1724793390796,3.88894,2571.4,2569.9,0.56275651]
[1724793390992,3.88894,2571.4,2570.2,3.8907]
[1724793390993,0.78223818,2571.2,2570.2,3.8907]
[1724793391199,1.17335727,2571.3,2570.2,3.8907]
[1724793391200,0.78223818,2571.1,2570.5,3.89026]
[1724793391639,1.17335727,2571.2,2570.5,3.89026]
[1724793391640,0.78223818,2571.2,2570.5,3.89026]
[1724793391945,0.78223818,2571.4,2571.1,5.61129651]
[1724793392140,1.17335727,2571.5,2571.1,5.61129651]
[1724793392141,0.78223818,2571.6,2571.2,0.07777566]
[1724793392341,1.56447636,2571.9,2571.1,3.88926]
[1724793392342,0.78223818,2571.8,2571.1,3.88926]
[1724793392500,0.78223818,2571.9,2571.3,9.7205]
[1724793392863,0.78223818,2571.8,2571.4,0.55]
[1724793393142,0.78223818,2571.9,2571.4,0.55]
[1724793394424,0.78223818,2572.0,2571.4,0.55]
[1724793394623,0.78223818,2572.0,2571.7,5.61129651]
[1724793394831,0.281087,2572.4,2571.9,3.88809]
[1724793394832,0.78223818,2572.4,2571.9,3.88809]
[1724793395044,0.78223818,2572.4,2572.0,0.55]
[1724793395045,0.78223818,2572.3,2572.0,0.55]
[1724793395243,0.78223818,2572.5,2572.0,0.55]
[1724793395531,0.78223818,2572.6,2571.8,7.43823]
[1724793395844,0.78223818,2572.7,2571.8,7.43823]
[1724793396046,0.09977256,2572.5,2571.8,7.43823]
[1724793396358,0.09977256,2572.4,2571.9,9.81714159]
[1724793396708,0.78223818,2573.2,2572.1,9.3536]
[1724793397013,0.09977256,2572.3,2572.2,16.79127]
[1724793397157,0.78223818,2573.4,2572.5,3.88715]
[1724793397353,1.13424536,2573.4,2572.6,0.55]
[1724793397659,0.78223818,2573.4,2572.6,0.55]
[1724793398198,4.66783818,2573.6,2572.6,0.55]
[1724793398420,0.78223818,2573.5,2572.6,0.55]
[1724793398704,0.78223818,2573.5,2572.5,5.61129651]
[1724793398705,4.66833818,2573.3,2572.5,5.61129651]
[1724793398912,0.78223818,2573.3,2572.5,5.61129651]
[1724793399262,3.88606,2573.3,2572.5,5.61129651]
[1724793399486,0.78223818,2573.4,2572.5,5.61129651]
[1724793399693,0.78223818,2573.4,2572.2,9.3536]
[1724793399694,0.78223818,2573.4,2572.9,5.61129651]
[1724793399891,2.38809674,2574.0,2573.3,5.61129651]
[1724793399892,0.78223818,2574.0,2573.3,5.61129651]
[1724793400212,0.1688149,2574.1,2573.4,0.55]
[1724793400570,3.88501,2574.0,2573.4,0.55]
[1724793400876,3.88501,2574.0,2572.6,3.88707]
[1724793400877,8.17580249,2573.9,2572.6,9.0296]
[1724793401083,8.17580249,2573.9,2572.4,9.0296]
[1724793401084,3.88534,2573.8,2572.4,9.0296]
[1724793401287,3.88602,2573.4,2572.4,9.0296]
[1724793401619,0.388602,2573.3,2571.9,9.5594]
[1724793401782,0.78223818,2573.2,2571.7,5.61129651]
[1724793401982,0.78223818,2573.1,2571.7,5.61129651]
[1724793402191,3.8875,2572.4,2571.1,3.88929]
[1724793402375,3.8875,2572.4,2570.9,9.5594]
[1724793402610,0.09953419,2572.3,2571.1,3.88926]
[1724793402775,0.49823761,2572.3,2571.1,3.88926]
[1724793403132,0.49823761,2572.3,2571.2,3.88912]
[1724793403341,0.09953419,2572.3,2571.5,5.61129651]
[1724793403488,3.88798,2572.1,2570.9,9.5594]
[1724793403831,3.88758,2572.3,2571.0,0.07777358]
[1724793403832,0.48768734,2572.0,2571.0,0.07777358]
[1724793404153,3.98703934,2572.0,2570.9,9.5594]
[1724793404428,0.09888934,2572.0,2571.2,5.61129651]
[1724793404625,0.09888934,2572.0,2570.9,9.5594]
[1724793404626,0.09888934,2572.0,2571.6,5.61129651]
[1724793404924,0.78223818,2572.8,2571.6,5.61129651]
[1724793404925,3.88683,2572.8,2571.7,0.07775104]
[1724793405207,0.09837127,2571.9,2571.7,3.96611104]
[1724793405409,3.88664,2573.0,2571.7,7.85450104]
[1724793405722,3.88664,2573.0,2571.8,0.55]
[1724793405723,3.88683,2572.8,2571.8,0.55]
[1724793405914,0.09837127,2572.9,2571.8,4.51595074]
[1724793406068,0.78223818,2573.1,2571.8,4.51595074]
[1724793406069,4.66859818,2573.1,2571.8,4.51595074]
[1724793406275,7.77325,2573.0,2571.8,0.62775074]
[1724793406475,3.88668,2572.9,2571.8,0.62775074]
[1724793406788,3.88661,2573.0,2571.8,0.62775074]
[1724793407107,3.88626,2573.2,2571.9,3.96592026]
[1724793407432,0.09837127,2572.9,2572.0,0.55]
[1724793407600,3.88626,2573.2,2572.0,4.43795]
[1724793407936,7.77259,2573.2,2572.0,0.55]
[1724793408227,3.88659,2573.0,2572.0,6.16129651]
[1724793408399,7.77322,2573.0,2572.0,6.16129651]
[1724793408586,3.88659,2573.0,2572.0,6.16129651]
[1724793408787,0.09837127,2572.9,2572.0,6.16129651]
[1724793408988,0.09837127,2572.9,2571.6,5.61129651]
[1724793409184,0.09837127,2572.9,2570.9,9.5594]
[1724793409185,3.88745,2572.4,2570.9,9.5594]
[1724793409416,4.276325,2572.3,2571.0,3.88941]
[1724793409629,0.48776138,2572.3,2571.0,3.88941]
[1724793409790,0.48776138,2572.3,2571.2,3.88922]
[1724793409991,0.48776138,2572.3,2571.0,3.88941]
[1724793409992,0.48776138,2572.3,2571.1,3.88929]
[1724793410311,4.31309734,2572.2,2571.1,5.61129651]
[1724793410519,0.09879161,2572.2,2571.4,3.88893]
[1724793410715,0.09879161,2572.2,2570.9,12.5594]
[1724793410716,3.88718,2572.6,2571.2,3.88918]
[1724793410915,0.09878183,2572.1,2571.0,3.88947]
[1724793411225,3.88758,2572.3,2571.1,3.0]
[1724793411435,0.09878183,2572.0,2571.2,3.88922]
[1724793411744,0.09878183,2571.9,2571.2,6.16129651]
[1724793411948,0.38875,2572.3,2571.2,6.16129651]
[1724793412149,0.09754092,2571.8,2571.3,3.88894]
[1724793412312,3.88745,2572.4,2571.4,0.55]
[1724793412514,0.09754092,2571.7,2571.2,10.05050651]
[1724793412712,0.40600984,2572.2,2571.2,10.05050651]
[1724793412912,0.09754092,2571.6,2571.2,6.16129651]
[1724793413116,0.40600984,2572.2,2570.4,9.9095]
[1724793413328,0.40600984,2572.2,2570.9,7.77918]
[1724793413329,0.09754092,2571.5,2570.9,7.77918]
[1724793413531,9.731,2572.1,2570.4,9.9095]
[1724793413730,9.731,2572.1,2569.9,9.5528]
[1724793413731,0.09749204,2571.4,2569.9,9.5528]
[1724793413950,0.78223818,2571.6,2569.9,9.5528]
[1724793413951,7.7795,2570.9,2569.9,9.5528]
[1724793414255,0.87973022,2571.3,2569.9,9.5528]
[1724793414413,0.09688583,2570.8,2569.9,13.44388]
[1724793414742,0.09685649,2570.7,2570.0,3.89097]
[1724793414950,0.78223818,2571.7,2570.4,3.89042]
[1724793415114,3.88842,2571.8,2570.6,3.8901]
[1724793415546,1.17335727,2572.0,2570.1,4.733485]
[1724793415547,0.78223818,2572.0,2570.1,4.733485]
[1724793415773,0.78223818,2572.0,2569.9,9.5528]
[1724793415774,3.8888,2571.5,2569.9,9.5528]
[1724793416068,3.88932,2571.2,2569.9,15.16409651]
[1724793416536,3.88965,2571.0,2569.9,15.16409651]
[1724793416746,3.88932,2571.2,2569.9,15.16409651]
[1724793416955,0.78223818,2571.3,2569.9,15.16409651]
[1724793417170,3.88969,2570.9,2569.9,5.61129651]
[1724793417365,3.88962,2571.0,2569.9,5.61129651]
[1724793417533,3.88962,2571.0,2569.6,3.89155]
[1724793417729,3.88987,2570.8,2569.0,3.89248]
[1724793417971,7.78109,2570.4,2569.0,7.78494]
[1724793418201,4.67245818,2570.6,2569.4,3.89186]
[1724793418479,4.67245818,2570.6,2568.9,13.85817]
[1724793418480,0.09614232,2570.3,2569.0,0.99655]
[1724793418766,0.09614232,2570.2,2569.6,5.61129651]
[1724793418953,0.78223818,2570.8,2569.7,3.89146]
[1724793419157,0.09614232,2570.1,2569.6,5.61129651]
[1724793419346,4.67215818,2570.8,2569.6,5.61129651]
[1724793419545,0.09614232,2570.0,2569.6,5.61129651]
[1724793419777,3.89,2570.7,2569.6,5.61129651]
[1724793419948,4.67215818,2570.8,2569.6,5.61129651]
[1724793419949,0.09614232,2569.9,2569.7,0.55]
[1724793420274,3.88992,2570.8,2569.7,0.55]
[1724793420487,0.78223818,2570.8,2569.6,5.61129651]
[1724793420628,3.89054,2570.4,2569.1,3.0]
[1724793420982,3.89054,2570.4,2569.0,8.78148]
[1724793420983,4.279754,2570.3,2569.2,3.0]
[1724793421271,4.279754,2570.3,2569.1,3.0]
[1724793421272,4.37589632,2570.3,2569.1,3.0]
[1724793421451,8.26659632,2570.3,2569.1,3.0]
[1724793421651,0.48519632,2570.3,2568.8,9.50406651]
[1724793421958,3.89104,2570.1,2568.8,9.50406651]
[1724793422165,0.09337333,2570.2,2569.0,3.89247]
[1724793422365,0.78223818,2570.5,2568.3,3.89357]
[1724793422575,0.09337333,2570.1,2569.0,4.88907]
[1724793422751,3.89053,2570.4,2569.1,3.8924]
[1724793422977,0.09337333,2570.0,2569.2,0.55]
[1724793423161,3.89053,2570.4,2569.2,10.05353651]
[1724793423365,0.19555955,2570.5,2569.2,5.61129651]
[1724793423366,0.09337333,2569.9,2569.2,5.61129651]
[1724793423602,3.89102,2570.1,2569.2,5.61129651]
[1724793423901,0.09306658,2569.8,2569.2,5.61129651]
[1724793424073,9.432,2570.0,2568.9,3.0]
[1724793424275,9.432,2570.0,2567.5,3.89477]
[1724793424276,10.21423818,2569.6,2567.5,3.89477]
[1724793424491,3.89288,2568.8,2567.6,0.389477]
[1724793424687,3.89362,2568.3,2567.2,9.9556]
[1724793425071,0.09299803,2568.2,2567.2,9.9556]
[1724793425266,3.89393,2568.1,2567.2,9.9556]
[1724793425514,0.09299803,2568.2,2567.0,3.89558]
[1724793425826,0.78223818,2568.5,2567.1,0.389558]
[1724793425956,0.09200855,2568.1,2567.0,3.89544]
[1724793426269,3.8937,2568.3,2567.0,3.89544]
[1724793426468,0.09200855,2568.0,2567.0,7.79094]
[1724793426756,0.0909104,2568.2,2567.0,3.89544]
[1724793426904,9.432,2568.7,2567.3,3.89501]
[1724793427111,0.0909104,2567.9,2567.3,3.89501]
[1724793427265,5.06631727,2568.8,2567.4,0.07788305]
[1724793427266,0.78223818,2568.8,2567.4,0.07788305]
[1724793427465,3.89274,2568.9,2567.5,3.89474]
[1724793427692,1.17335727,2569.1,2567.9,3.89422]
[1724793427693,0.08563533,2568.7,2567.9,3.89422]
[1724793427892,0.40641067,2568.7,2568.0,0.55]
[1724793428094,0.08563533,2568.6,2567.8,4.44432]
[1724793428409,0.40641067,2568.7,2567.8,0.55]
[1724793428620,0.08592994,2568.5,2566.9,9.3953]
[1724793428915,0.40641067,2568.7,2567.0,3.89551]
[1724793428916,3.89323,2568.6,2567.0,3.89551]
[1724793429066,0.08592994,2568.4,2567.2,3.8952]
[1724793429266,4.32328407,2568.5,2567.2,3.8952]
[1724793429466,3.97956994,2568.3,2567.0,5.2635188]
[1724793429666,3.89364,2568.3,2567.0,5.2635188]
[1724793429894,0.08592994,2568.2,2567.2,3.89527]
[1724793430091,0.08592994,2568.2,2567.0,5.2635388]
[1724793430310,0.08592994,2568.2,2567.2,3.89527]
[1724793430531,0.08592994,2568.2,2567.1,3.89543]
[1724793430712,0.08592994,2568.2,2567.2,0.55]
[1724793431027,0.08590048,2568.1,2567.3,3.89505]
[1724793431180,0.08590048,2568.1,2567.4,4.4449]
[1724793431387,4.29946067,2568.7,2567.4,3.8949]
[1724793431584,0.08590048,2568.0,2567.5,0.55]
[1724793432001,3.89341,2568.5,2567.3,0.55]
[1724793432227,0.08590048,2567.9,2567.3,0.55]
[1724793432427,0.389341,2568.4,2567.3,3.8951]
[1724793432584,0.389341,2568.4,2567.4,0.55]
[1724793432947,0.08590048,2568.3,2566.9,9.3953]
[1724793433082,0.08590048,2568.3,2566.6,3.89611]
[1724793433083,9.6998,2568.2,2566.6,3.89611]
[1724793433283,3.8944,2567.8,2566.6,1.705374]
[1724793433483,3.89476,2567.6,2566.4,9.2612]
[1724793433933,0.08590048,2567.5,2566.4,9.2612]
[1724793434080,0.08590048,2567.5,2566.4,13.15769]
[1724793434281,0.08590048,2567.5,2566.4,9.2612]
[1724793434521,0.48396653,2567.5,2566.4,9.2612]
[1724793435237,0.48396653,2567.5,2566.4,13.15767]
[1724793435742,0.08590048,2567.5,2566.8,3.89588]
[1724793435901,3.89353,2568.4,2566.9,0.55]
[1724793436100,0.08590048,2568.1,2566.9,4.44574]
[1724793436335,0.08590048,2568.1,2566.9,0.55]
[1724793436537,3.97997048,2568.1,2566.9,0.55]
[1724793436837,0.08590048,2568.1,2566.9,4.44573]
[1724793437042,0.08590048,2568.1,2567.0,3.89559]
[1724793437213,0.08590048,2568.1,2567.2,3.89524]
[1724793437561,7.78652,2568.6,2567.2,3.89524]
[1724793437562,0.08590048,2568.0,2567.3,0.55]
[1724793437729,3.89322,2568.6,2567.3,4.44513]
[1724793437903,0.08590048,2567.9,2567.3,0.55]
[1724793438104,3.89323,2568.6,2567.2,3.8952]
[1724793438349,0.08590048,2568.5,2567.3,0.55]
[1724793438644,3.89352,2568.4,2567.3,0.55]
[1724793439013,0.08539961,2568.3,2567.3,0.55]
[1724793439417,3.89365,2568.3,2567.3,0.55]
[1724793439619,0.08539961,2568.2,2567.2,9.8023]
[1724793439822,3.97916961,2568.2,2567.2,9.8023]
[1724793440034,3.97916961,2568.2,2565.8,9.8023]
[1724793440035,9.2477,2568.1,2565.8,9.8023]
[1724793440234,3.89462,2567.7,2566.1,3.89687]
[1724793440436,3.89495,2567.5,2566.1,4.286557]
[1724793440624,0.47499911,2567.6,2566.4,3.8965]
[1724793440826,0.389462,2567.6,2566.5,3.89635]
[1724793441035,12.2477,2568.1,2566.2,3.89672]
[1724793441036,0.51014745,2567.5,2566.2,3.89672]
[1724793441199,0.51014745,2567.5,2565.8,9.8023]
[1724793441200,3.8956,2567.0,2565.8,9.8023]
[1724793441604,3.8959,2566.8,2565.8,9.8023]
[1724793441834,0.0850656,2566.9,2565.8,9.8023]
[1724793442111,3.89621,2566.6,2565.8,9.8023]
[1724793442429,3.9809856,2566.8,2565.8,9.8023]
[1724793442430,3.89592,2566.8,2565.8,9.8023]
[1724793442614,0.0850656,2566.5,2565.9,0.07793689]
[1724793442810,3.89563,2567.0,2565.8,9.8023]
[1724793443006,0.0850656,2566.4,2565.9,1.05816108]
[1724793443236,0.40638761,2567.1,2566.1,3.89689]
[1724793443435,0.40638761,2567.1,2566.2,0.07791591]
[1724793443741,0.0850656,2567.0,2566.2,3.97465591]
[1724793443926,4.30127255,2567.5,2566.3,0.62791248]
[1724793444136,0.0850656,2566.9,2566.2,3.89679]
[1724793444322,3.895,2567.4,2566.0,3.89704]
[1724793444522,0.0850656,2567.3,2566.1,0.55]
[1724793444820,0.0850656,2567.3,2566.2,0.07791977]
[1724793445018,0.0850656,2567.3,2566.5,3.89626]
[1724793445344,0.0850656,2567.2,2566.6,0.07791153]
[1724793445650,0.40634255,2567.5,2566.6,0.07791153]
[1724793445949,0.40634255,2567.5,2566.6,3.97406153]
[1724793446251,0.40634255,2567.5,2566.6,0.07790815]
[1724793446252,0.08466271,2567.4,2566.6,0.07790815]
[1724793446462,0.08466271,2567.4,2566.3,6.16129651]
[1724793446623,0.08466271,2567.4,2566.5,3.89625]
[1724793446944,0.08466271,2567.4,2566.7,9.1199]
[1724793447149,0.40634255,2567.5,2566.7,9.1199]
[1724793447309,0.08472168,2567.3,2566.7,13.01594]
[1724793447510,0.40634255,2567.5,2566.7,13.01594]
[1724793447706,0.08472168,2567.4,2566.8,3.89589]
[1724793447908,0.40634255,2567.5,2566.8,7.86968107]
[1724793448145,0.40634255,2567.5,2566.7,9.1199]
[1724793448146,0.08472168,2567.4,2566.7,9.1199]
[1724793448347,3.89508,2567.4,2566.2,9.1199]
[1724793448507,0.08472168,2567.3,2566.2,9.1199]
[1724793448707,0.08472168,2567.3,2565.0,21.92982651]
[1724793448708,3.89543,2567.2,2565.8,3.89735]
[1724793449049,3.8956,2567.0,2565.8,3.89735]
[1724793449348,3.8956,2567.0,2565.7,13.66274]
[1724793449349,3.89567,2567.0,2565.7,13.66274]
[1724793449559,3.89567,2567.0,2565.7,9.7653]
[1724793449560,0.08472168,2566.9,2565.7,9.7653]
[1724793449851,0.50077885,2566.9,2565.7,9.7653]
[1724793450054,4.39654885,2566.9,2565.7,9.7653]
[1724793450361,0.50077885,2566.9,2566.0,3.89711]
[1724793450654,0.50077885,2566.9,2566.1,0.07792739]
[1724793450655,0.08472168,2566.9,2566.1,0.07792739]
[1724793450818,0.08472168,2566.9,2565.7,9.7653]
[1724793450819,0.08472168,2566.9,2566.4,3.89645]
[1724793451029,0.40634255,2567.5,2566.5,3.97417552]
[1724793451221,0.08472168,2566.8,2566.5,3.97417552]
[1724793451412,0.40634255,2567.5,2566.5,3.97417552]
[1724793451608,0.08472168,2566.7,2566.5,3.97417552]
[1724793451806,0.74697681,2567.5,2566.7,3.89592]
[1724793451807,0.40634255,2567.5,2566.7,3.89592]
[1724793452041,0.40634255,2567.5,2566.6,18.99690939]
[1724793452042,0.40634255,2567.5,2566.8,0.55]
[1724793452229,0.40634255,2567.5,2566.9,3.89566]
[1724793452435,3.89356,2568.4,2567.1,3.89544]
[1724793452635,0.40616948,2567.9,2567.2,0.07789447]
[1724793452819,3.89356,2568.4,2567.2,0.07789447]
[1724793453039,3.89356,2568.4,2567.2,0.07789501]
[1724793453244,3.89356,2568.4,2567.1,3.89544]
[1724793453245,0.40617003,2568.0,2567.1,3.89544]
[1724793453438,7.78716,2568.4,2567.1,3.89535]
[1724793453614,0.40614965,2568.0,2567.2,0.07789073]
[1724793453962,13.39502,2568.5,2567.2,3.89526]
[1724793454143,13.39502,2568.5,2567.0,3.8955]
[1724793454144,0.40613804,2568.0,2567.0,3.8955]
[1724793454448,3.89386,2568.2,2567.1,0.55]
[1724793454653,0.40616098,2568.0,2567.1,0.55]
[1724793455621,4.30026098,2568.0,2566.7,3.0]
[1724793455823,3.89438,2567.8,2566.7,3.0]
[1724793456036,8.19454098,2568.0,2566.7,3.0]
[1724793456259,3.89426,2567.9,2566.7,6.89604]
[1724793456426,3.89426,2567.9,2566.6,9.4115]
[1724793456427,3.89439,2567.8,2566.6,9.4115]
[1724793456608,0.42468634,2567.9,2566.0,9.309]
[1724793456609,9.6332,2567.7,2566.0,9.309]
[1724793456826,9.6332,2567.7,2564.7,11.269]
[1724793456827,3.89517,2567.3,2565.9,7.79428]
[1724793457025,3.89556,2567.1,2565.7,3.89747]
[1724793457946,3.89575,2566.9,2565.6,9.309]
[1724793458348,0.389386,2567.2,2565.9,3.89722]
[1724793458571,3.0,2567.4,2566.1,3.89681]
[1724793459158,6.89504,2567.4,2566.1,3.89681]
[1724793459328,3.0,2567.4,2566.1,3.89695]
[1724793459676,3.0,2567.4,2566.1,3.89686]
[1724793459677,3.89499,2567.4,2566.1,3.89686]
[1724793460345,10.80655727,2567.7,2566.3,3.89651]
[1724793460346,0.78223818,2567.6,2566.3,3.89651]
[1724793460604,14.70114727,2567.7,2566.1,3.89685]
[1724793460605,3.89497,2567.5,2566.1,3.89685]
[1724793460810,14.31003818,2567.7,2566.3,3.89654]
[1724793461108,14.31003818,2567.7,2566.2,0.939685]
[1724793461109,3.89484,2567.5,2566.2,0.55]
[1724793461292,3.89484,2567.5,2565.8,3.0]
[1724793461293,4.67742818,2567.3,2565.8,6.89741]
[1724793461629,3.89556,2567.1,2565.9,3.0]
[1724793461767,4.67742818,2567.3,2565.9,6.89723]
[1724793461967,1.17172218,2567.4,2566.3,3.89654]
[1724793462217,1.17172218,2567.4,2565.9,3.0]
[1724793462218,3.97890183,2567.2,2565.9,12.50844651]
[1724793462427,0.78223818,2567.3,2566.1,3.89683]
[1724793462604,1.17172218,2567.4,2566.4,3.8964]
[1724793462923,0.08358183,2567.2,2566.4,3.8964]
[1724793463068,0.78223818,2567.6,2566.0,0.3]
[1724793463411,10.80655727,2567.7,2566.0,0.3]
[1724793463412,0.78223818,2567.5,2566.4,3.89638]
[1724793463573,0.08371944,2567.5,2566.5,0.07790977]
[1724793463917,0.08371944,2567.5,2566.6,4.4461]
[1724793464128,0.08371944,2567.5,2566.7,3.89598]
[1724793464326,0.78223818,2567.8,2567.1,3.89535]
[1724793464485,0.08371944,2567.4,2567.1,4.284885]
[1724793464699,0.40616098,2568.0,2567.1,4.284885]
[1724793464904,0.40616098,2568.0,2567.1,0.389535]
[1724793465114,3.97841253,2567.9,2566.7,3.89591]
[1724793465386,3.97841253,2567.9,2566.6,0.55]
[1724793465387,0.78223818,2567.6,2566.8,3.8958]
[1724793465575,0.78223818,2567.7,2566.9,0.55]
[1724793465900,0.08284622,2567.5,2566.9,0.55]
[1724793466101,0.08421278,2567.6,2566.9,0.55]
[1724793466416,0.08421278,2567.5,2566.9,4.44571]
[1724793466598,0.78223818,2567.8,2567.0,3.89558]
[1724793466912,1.17335727,2567.9,2566.9,4.89024]
[1724793466913,0.08421278,2567.4,2566.9,4.89024]
[1724793467115,0.78223818,2567.7,2566.9,4.89024]
[1724793467412,0.08421278,2567.6,2567.3,13.6224]
[1724793467630,1.17335727,2567.9,2567.3,13.6224]
[1724793467631,0.78223818,2567.9,2567.5,3.89473]
[1724793467807,0.78223818,2568.2,2567.8,3.89437]
[1724793468109,0.78223818,2568.2,2567.6,0.07787348]
[1724793468110,0.78223818,2568.4,2567.9,0.55]
[1724793468306,0.78223818,2568.1,2567.4,4.86762]
[1724793468512,0.78223818,2568.1,2567.5,0.9761586]
[1724793469075,0.78223818,2568.1,2567.6,3.89468]
[1724793469298,0.78223818,2568.0,2567.6,3.89468]
[1724793469828,0.78223818,2568.0,2567.5,0.9761586]
[1724793469982,1.17335727,2568.1,2567.5,0.9761586]
[1724793469983,0.78223818,2567.9,2567.8,3.89438]
[1724793470312,1.56447636,2568.2,2567.8,3.89438]
[1724793470313,0.79910698,2568.0,2567.8,0.55]
[1724793470481,1.17335727,2568.0,2567.5,4.44474]
[1724793470827,0.79907046,2567.7,2567.3,13.62245]